[Event "Titled Tuesday Blitz May 17 Early 2022"]
[White "Tarigan, Gilbert Elroy"]
[Black "Demchenko, Anton"]
[WhiteFideId "7108133"]
[BlackFideId "4160258"]
[WhiteElo "1908"]
[BlackElo "2539"]
[Result "1-0"]
[Round "03"]
[TimeControl "180+1"]
[Date "2022.05.17"]
[WhiteClock "0:00:07"]
[BlackClock "0:00:26"]

1. e4 {[%clk 0:03:00]}  e5 {[%clk 0:03:00]} 2. Nf3 {[%clk 0:02:59]}  Nc6 {[%clk 0:03:00]} 3. Bb5 {[%clk 0:02:59]}  a6 {[%clk 0:03:01]} 4. Ba4 {[%clk 0:02:59]}  Nf6 {[%clk 0:03:01]} 5. O-O {[%clk 0:02:59]}  Be7 {[%clk 0:03:01]} 6. Re1 {[%clk 0:02:58]}  b5 {[%clk 0:03:01]} 7. Bb3 {[%clk 0:02:58]}  d6 {[%clk 0:03:02]} 8. c3 {[%clk 0:02:55]}  O-O {[%clk 0:03:02]} 9. h3 {[%clk 0:02:55]}  h6 {[%clk 0:03:02]} 10. d4 {[%clk 0:02:53]}  Bd7 {[%clk 0:03:03]} 11. Nbd2 {[%clk 0:02:49]}  Re8 {[%clk 0:03:03]} 12. a4 {[%clk 0:02:36]}  Bf8 {[%clk 0:02:56]} 13. Bc2 {[%clk 0:02:34]}  b4 {[%clk 0:02:37]} 14. d5 {[%clk 0:02:27]}  Ne7 {[%clk 0:02:36]} 15. cxb4 {[%clk 0:02:24]}  Qb8 {[%clk 0:02:37]} 16. b5 {[%clk 0:02:17]}  axb5 {[%clk 0:02:37]} 17. a5 {[%clk 0:02:18]}  b4 {[%clk 0:02:34]} 18. Nc4 {[%clk 0:02:15]}  Bb5 {[%clk 0:02:32]} 19. b3 {[%clk 0:02:10]}  Nd7 {[%clk 0:02:26]} 20. Be3 {[%clk 0:02:09]}  Qb7 {[%clk 0:02:07]} 21. Nfd2 {[%clk 0:02:04]}  Ng6 {[%clk 0:02:02]} 22. g3 {[%clk 0:01:56]}  c6 {[%clk 0:01:51]} 23. dxc6 {[%clk 0:01:48]}  Bxc6 {[%clk 0:01:52]} 24. Nb6 {[%clk 0:01:43]}  Nxb6 {[%clk 0:01:51]} 25. Bxb6 {[%clk 0:01:42]}  d5 {[%clk 0:01:38]} 26. exd5 {[%clk 0:01:38]}  Bxd5 {[%clk 0:01:39]} 27. Be4 {[%clk 0:01:39]}  Bxe4 {[%clk 0:01:16]} 28. Nxe4 {[%clk 0:01:40]}  f5 {[%clk 0:01:15]} 29. Nd6 {[%clk 0:01:33]}  Bxd6 {[%clk 0:01:15]} 30. Qxd6 {[%clk 0:01:34]}  Kh7 {[%clk 0:01:16]} 31. Rac1 {[%clk 0:01:28]}  Qf3 {[%clk 0:01:04]} 32. Qxb4 {[%clk 0:01:16]}  f4 {[%clk 0:01:01]} 33. Qe4 {[%clk 0:01:13]}  Qh5 {[%clk 0:00:53]} 34. Rc6 {[%clk 0:01:07]}  Rac8 {[%clk 0:00:49]} 35. g4 {[%clk 0:00:58]}  Qg5 {[%clk 0:00:48]} 36. Rec1 {[%clk 0:00:57]}  Rxc6 {[%clk 0:00:37]} 37. Rxc6 {[%clk 0:00:57]}  h5 {[%clk 0:00:38]} 38. f3 {[%clk 0:00:38]}  Rf8 {[%clk 0:00:35]} 39. Bf2 {[%clk 0:00:30]}  hxg4 {[%clk 0:00:32]} 40. hxg4 {[%clk 0:00:27]}  Rd8 {[%clk 0:00:33]} 41. a6 {[%clk 0:00:17]}  Rd1+ {[%clk 0:00:33]} 42. Kg2 {[%clk 0:00:17]}  Ra1 {[%clk 0:00:34]} 43. b4 {[%clk 0:00:14]}  Ra2 {[%clk 0:00:31]} 44. b5 {[%clk 0:00:13]}  Qh6 {[%clk 0:00:29]} 45. Qxg6+ {[%clk 0:00:08]}  Qxg6 {[%clk 0:00:29]} 46. Rxg6 {[%clk 0:00:09]}  Kxg6 {[%clk 0:00:30]} 47. b6 {[%clk 0:00:08]}  e4 {[%clk 0:00:31]} 48. b7 {[%clk 0:00:07]}  e3 {[%clk 0:00:30]} 49. b8=Q {[%clk 0:00:07]}  Rxf2+ {[%clk 0:00:28]} 50. Kg1 {[%clk 0:00:08]}  Rxf3 {[%clk 0:00:27]} 51. Qd6+ {[%clk 0:00:07]}  Kh7 {[%clk 0:00:27]} 52. Qd3+ {[%clk 0:00:06]}  Kh8 {[%clk 0:00:26]} 53. a7 {[%clk 0:00:07]}  Rg3+ {[%clk 0:00:26]} 54. Kf1 {[%clk 0:00:08]}  Rf3+ {[%clk 0:00:26]} 55. Ke1 {[%clk 0:00:07]} 1-0


[Site "https://www.chess.com"]

[Event "Titled Tuesday Blitz May 17 Early 2022"]
[White "Vasquez Schroeder, Rodrigo"]
[Black "Solovchuk, Oleksiy"]
[WhiteFideId "3400042"]
[BlackFideId "14115220"]
[WhiteElo "2567"]
[BlackElo "2305"]
[Result "1/2-1/2"]
[Round "03"]
[TimeControl "180+1"]
[Date "2022.05.17"]
[WhiteClock "0:00:09"]
[BlackClock "0:00:24"]

1. e4 {[%clk 0:03:00]}  c6 {[%clk 0:02:59]} 2. Nf3 {[%clk 0:02:59]}  d5 {[%clk 0:02:59]} 3. d3 {[%clk 0:02:59]}  dxe4 {[%clk 0:02:58]} 4. dxe4 {[%clk 0:02:59]}  Qxd1+ {[%clk 0:02:58]} 5. Kxd1 {[%clk 0:03:00]}  Nd7 {[%clk 0:02:56]} 6. Bc4 {[%clk 0:02:53]}  f6 {[%clk 0:02:53]} 7. a4 {[%clk 0:02:45]}  e5 {[%clk 0:02:53]} 8. Nbd2 {[%clk 0:02:42]}  Nh6 {[%clk 0:02:51]} 9. h3 {[%clk 0:02:40]}  Nf7 {[%clk 0:02:50]} 10. c3 {[%clk 0:02:39]}  Nd6 {[%clk 0:02:47]} 11. Bd3 {[%clk 0:02:37]}  Nc5 {[%clk 0:02:44]} 12. Bc2 {[%clk 0:02:37]}  a5 {[%clk 0:02:43]} 13. Re1 {[%clk 0:02:34]}  Be6 {[%clk 0:02:43]} 14. b3 {[%clk 0:02:30]}  O-O-O {[%clk 0:02:36]} 15. Ke2 {[%clk 0:02:22]}  g5 {[%clk 0:02:21]} 16. Ba3 {[%clk 0:02:21]}  Na6 {[%clk 0:02:09]} 17. Bd3 {[%clk 0:02:16]}  Nb8 {[%clk 0:02:07]} 18. Bxd6 {[%clk 0:02:11]}  Bxd6 {[%clk 0:02:06]} 19. Bc4 {[%clk 0:02:11]}  Bd7 {[%clk 0:02:05]} 20. Nf1 {[%clk 0:02:07]}  h5 {[%clk 0:01:58]} 21. Ne3 {[%clk 0:02:06]}  Kc7 {[%clk 0:01:55]} 22. h4 {[%clk 0:02:02]}  g4 {[%clk 0:01:51]} 23. Nd2 {[%clk 0:02:02]}  Bc5 {[%clk 0:01:50]} 24. Ndf1 {[%clk 0:02:01]}  Bxe3 {[%clk 0:01:48]} 25. Kxe3 {[%clk 0:01:54]}  f5 {[%clk 0:01:43]} 26. exf5 {[%clk 0:01:53]}  Bxf5 {[%clk 0:01:44]} 27. Ng3 {[%clk 0:01:53]}  Bg6 {[%clk 0:01:44]} 28. Red1 {[%clk 0:01:53]}  Rhf8 {[%clk 0:01:39]} 29. Rxd8 {[%clk 0:01:42]}  Rxd8 {[%clk 0:01:38]} 30. Ra2 {[%clk 0:01:38]}  Nd7 {[%clk 0:01:36]} 31. Rd2 {[%clk 0:01:31]}  Nc5 {[%clk 0:01:32]} 32. Ra2 {[%clk 0:01:15]}  Bd3 {[%clk 0:01:28]} 33. Nxh5 {[%clk 0:01:08]}  Bxc4 {[%clk 0:01:28]} 34. bxc4 {[%clk 0:01:09]}  Rd3+ {[%clk 0:01:28]} 35. Ke2 {[%clk 0:01:09]}  Rxc3 {[%clk 0:01:28]} 36. Nf6 {[%clk 0:01:09]}  Ne6 {[%clk 0:01:26]} 37. g3 {[%clk 0:01:04]}  Rxc4 {[%clk 0:01:19]} 38. h5 {[%clk 0:01:01]}  Rc1 {[%clk 0:01:11]} 39. Nxg4 {[%clk 0:00:59]}  Kd6 {[%clk 0:01:05]} 40. Kf3 {[%clk 0:00:55]}  Rh1 {[%clk 0:01:03]} 41. Nf6 {[%clk 0:00:44]}  Ke7 {[%clk 0:01:03]} 42. Kg2 {[%clk 0:00:44]}  Rb1 {[%clk 0:01:02]} 43. Ng4 {[%clk 0:00:43]}  e4 {[%clk 0:00:57]} 44. h6 {[%clk 0:00:42]}  Ng5 {[%clk 0:00:57]} 45. Re2 {[%clk 0:00:39]}  Kf7 {[%clk 0:00:54]} 46. Rd2 {[%clk 0:00:37]}  b5 {[%clk 0:00:49]} 47. Rd7+ {[%clk 0:00:32]}  Ke6 {[%clk 0:00:43]} 48. Rc7 {[%clk 0:00:32]}  Kd6 {[%clk 0:00:30]} 49. h7 {[%clk 0:00:22]}  Nxh7 {[%clk 0:00:27]} 50. Rxh7 {[%clk 0:00:22]}  bxa4 {[%clk 0:00:28]} 51. Ra7 {[%clk 0:00:20]}  Rb5 {[%clk 0:00:27]} 52. Ne3 {[%clk 0:00:19]}  Kc5 {[%clk 0:00:28]} 53. Nc2 {[%clk 0:00:18]}  Kb6 {[%clk 0:00:28]} 54. Ra8 {[%clk 0:00:18]}  Rb3 {[%clk 0:00:27]} 55. g4 {[%clk 0:00:16]}  Rb5 {[%clk 0:00:25]} 56. Rb8+ {[%clk 0:00:13]}  Kc7 {[%clk 0:00:24]} 57. Rxb5 {[%clk 0:00:13]}  cxb5 {[%clk 0:00:24]} 58. g5 {[%clk 0:00:13]}  Kd8 {[%clk 0:00:23]} 59. Kg3 {[%clk 0:00:13]}  b4 {[%clk 0:00:23]} 60. Kf4 {[%clk 0:00:13]}  a3 {[%clk 0:00:24]} 61. Kxe4 {[%clk 0:00:13]}  a2 {[%clk 0:00:23]} 62. Na1 {[%clk 0:00:12]}  a4 {[%clk 0:00:23]} 63. Kd4 {[%clk 0:00:12]}  b3 {[%clk 0:00:23]} 64. Kc3 {[%clk 0:00:13]}  Ke7 {[%clk 0:00:22]} 65. f4 {[%clk 0:00:12]}  Ke6 {[%clk 0:00:23]} 66. Kb2 {[%clk 0:00:12]}  Kf5 {[%clk 0:00:23]} 67. Ka3 {[%clk 0:00:10]}  Kg6 {[%clk 0:00:23]} 68. Kb2 {[%clk 0:00:10]}  Kf5 {[%clk 0:00:23]} 69. Ka3 {[%clk 0:00:09]}  Kg6 {[%clk 0:00:23]} 70. Kb2 {[%clk 0:00:09]}  Kf5 {[%clk 0:00:24]} 1/2-1/2


[Site "https://www.chess.com"]

[Event "Titled Tuesday Blitz May 17 Early 2022"]
[White "Vidonyak, Roman"]
[Black "Petrovskyi, Vadym"]
[WhiteFideId "14100622"]
[BlackFideId "14165210"]
[WhiteElo "2423"]
[BlackElo "2400"]
[Result "0-1"]
[Round "03"]
[TimeControl "180+1"]
[Date "2022.05.17"]
[WhiteClock "0:00:10"]
[BlackClock "0:01:13"]

1. d4 {[%clk 0:03:00]}  Nf6 {[%clk 0:02:59]} 2. c4 {[%clk 0:03:00]}  g6 {[%clk 0:02:58]} 3. h4 {[%clk 0:03:01]}  Bg7 {[%clk 0:02:55]} 4. Nc3 {[%clk 0:03:00]}  d6 {[%clk 0:02:54]} 5. e4 {[%clk 0:02:58]}  O-O {[%clk 0:02:55]} 6. Be2 {[%clk 0:02:58]}  c5 {[%clk 0:02:55]} 7. d5 {[%clk 0:02:32]}  a6 {[%clk 0:02:54]} 8. h5 {[%clk 0:02:29]}  b5 {[%clk 0:02:43]} 9. cxb5 {[%clk 0:02:17]}  axb5 {[%clk 0:02:43]} 10. hxg6 {[%clk 0:02:13]}  fxg6 {[%clk 0:02:32]} 11. Bxb5 {[%clk 0:02:12]}  Nxe4 {[%clk 0:02:24]} 12. Nxe4 {[%clk 0:02:03]}  Qa5+ {[%clk 0:02:21]} 13. Nc3 {[%clk 0:01:59]}  Bxc3+ {[%clk 0:02:19]} 14. bxc3 {[%clk 0:02:00]}  Qxb5 {[%clk 0:02:19]} 15. Ne2 {[%clk 0:01:39]}  Ba6 {[%clk 0:01:27]} 16. Be3 {[%clk 0:01:19]}  Nd7 {[%clk 0:01:22]} 17. Rb1 {[%clk 0:01:12]}  Qc4 {[%clk 0:01:22]} 18. Rb2 {[%clk 0:00:44]}  Ne5 {[%clk 0:01:21]} 19. O-O {[%clk 0:00:41]}  Qh4 {[%clk 0:01:13]} 20. g3 {[%clk 0:00:11]}  Nf3+ {[%clk 0:01:12]} 21. Kg2 {[%clk 0:00:10]}  Qh2# {[%clk 0:01:13]} 0-1


[Site "https://www.chess.com"]

[Event "Titled Tuesday Blitz May 17 Early 2022"]
[White "Vokhidov, Shamsiddin"]
[Black "Wagner, Dennis"]
[WhiteFideId "14204223"]
[BlackFideId "24650684"]
[WhiteElo "2611"]
[BlackElo "2355"]
[Result "1-0"]
[Round "03"]
[TimeControl "180+1"]
[Date "2022.05.17"]
[WhiteClock "0:00:43"]
[BlackClock "0:00:04"]

1. e4 {[%clk 0:03:00]}  e5 {[%clk 0:02:59]} 2. Nf3 {[%clk 0:03:01]}  Nc6 {[%clk 0:03:00]} 3. Nc3 {[%clk 0:03:01]}  Nf6 {[%clk 0:03:00]} 4. a3 {[%clk 0:03:02]}  d5 {[%clk 0:02:59]} 5. Bb5 {[%clk 0:03:02]}  Nxe4 {[%clk 0:02:57]} 6. Qe2 {[%clk 0:03:02]}  Nxc3 {[%clk 0:02:47]} 7. Qxe5+ {[%clk 0:03:02]}  Be7 {[%clk 0:02:24]} 8. Qxc3 {[%clk 0:02:57]}  O-O {[%clk 0:02:19]} 9. Bxc6 {[%clk 0:02:56]}  Bf6 {[%clk 0:02:13]} 10. d4 {[%clk 0:02:53]}  bxc6 {[%clk 0:01:12]} 11. Qxc6 {[%clk 0:02:54]}  Re8+ {[%clk 0:01:03]} 12. Be3 {[%clk 0:02:52]}  Rb8 {[%clk 0:01:03]} 13. O-O-O {[%clk 0:02:50]}  Re6 {[%clk 0:00:57]} 14. Qc3 {[%clk 0:02:47]}  Reb6 {[%clk 0:00:47]} 15. b3 {[%clk 0:02:44]}  Bf5 {[%clk 0:00:45]} 16. Bf4 {[%clk 0:02:39]}  Qe7 {[%clk 0:00:39]} 17. Qc5 {[%clk 0:02:29]}  Qe4 {[%clk 0:00:32]} 18. Bxc7 {[%clk 0:02:11]}  Be7 {[%clk 0:00:29]} 19. Nd2 {[%clk 0:01:51]}  Bxc5 {[%clk 0:00:11]} 20. Nxe4 {[%clk 0:01:50]}  Bxa3+ {[%clk 0:00:11]} 21. Kd2 {[%clk 0:01:50]}  Bxe4 {[%clk 0:00:11]} 22. Bxb8 {[%clk 0:01:48]}  Rxb8 {[%clk 0:00:11]} 23. f3 {[%clk 0:01:46]}  Bg6 {[%clk 0:00:11]} 24. Ra1 {[%clk 0:01:45]}  Bb2 {[%clk 0:00:11]} 25. Rxa7 {[%clk 0:01:31]}  Bxd4 {[%clk 0:00:12]} 26. Rd7 {[%clk 0:01:25]}  Rc8 {[%clk 0:00:11]} 27. c4 {[%clk 0:01:25]}  Bf6 {[%clk 0:00:04]} 28. Rxd5 {[%clk 0:01:24]}  h5 {[%clk 0:00:05]} 29. Rc1 {[%clk 0:01:13]}  Kh7 {[%clk 0:00:05]} 30. c5 {[%clk 0:01:13]}  h4 {[%clk 0:00:03]} 31. c6 {[%clk 0:01:14]}  Bd8 {[%clk 0:00:02]} 32. b4 {[%clk 0:01:11]}  Bc7 {[%clk 0:00:03]} 33. Rc4 {[%clk 0:01:09]}  f6 {[%clk 0:00:02]} 34. Rxh4+ {[%clk 0:01:08]}  Kg8 {[%clk 0:00:03]} 35. b5 {[%clk 0:01:07]}  Bf7 {[%clk 0:00:03]} 36. Rd7 {[%clk 0:01:06]}  Ba5+ {[%clk 0:00:03]} 37. Kc2 {[%clk 0:01:03]}  Rb8 {[%clk 0:00:03]} 38. Rb7 {[%clk 0:00:54]}  Bg6+ {[%clk 0:00:03]} 39. Kb3 {[%clk 0:00:50]}  Re8 {[%clk 0:00:03]} 40. c7 {[%clk 0:00:47]}  Bf7+ {[%clk 0:00:03]} 41. Kc2 {[%clk 0:00:46]}  Rc8 {[%clk 0:00:04]} 42. b6 {[%clk 0:00:45]}  Bxb6 {[%clk 0:00:03]} 43. Rxb6 {[%clk 0:00:46]}  Rxc7+ {[%clk 0:00:04]} 44. Kd2 {[%clk 0:00:46]}  g5 {[%clk 0:00:04]} 45. Rh6 {[%clk 0:00:45]}  Kg7 {[%clk 0:00:04]} 46. Rhxf6 {[%clk 0:00:46]}  Rd7+ {[%clk 0:00:04]} 47. Rfd6 {[%clk 0:00:46]}  Ra7 {[%clk 0:00:05]} 48. Ke3 {[%clk 0:00:46]}  Ra3+ {[%clk 0:00:05]} 49. Rd3 {[%clk 0:00:46]}  Ra2 {[%clk 0:00:04]} 50. Rb7 {[%clk 0:00:46]}  Kf6 {[%clk 0:00:03]} 51. Rd6+ {[%clk 0:00:46]}  Ke5 {[%clk 0:00:04]} 52. Rd2 {[%clk 0:00:43]}  Bc4 {[%clk 0:00:04]} 53. Rxa2 {[%clk 0:00:42]}  Bxa2 {[%clk 0:00:04]} 54. Rb5+ {[%clk 0:00:43]} 1-0


[Site "https://www.chess.com"]

[Event "Titled Tuesday Blitz May 17 Early 2022"]
[White "Vovk, Orest"]
[Black "Kozak, Adam"]
[WhiteFideId "14113490"]
[BlackFideId "753246"]
[WhiteElo "2203"]
[BlackElo "2459"]
[Result "1-0"]
[Round "03"]
[TimeControl "180+1"]
[Date "2022.05.17"]
[WhiteClock "0:00:10"]
[BlackClock "0:00:36"]

1. h4 {[%clk 0:03:00]}  e5 {[%clk 0:02:57]} 2. h5 {[%clk 0:02:59]}  d5 {[%clk 0:02:57]} 3. h6 {[%clk 0:03:00]}  Nxh6 {[%clk 0:02:57]} 4. d4 {[%clk 0:03:00]}  Ng4 {[%clk 0:02:54]} 5. f3 {[%clk 0:02:59]}  exd4 {[%clk 0:02:32]} 6. fxg4 {[%clk 0:02:46]}  c5 {[%clk 0:02:32]} 7. e3 {[%clk 0:02:42]}  dxe3 {[%clk 0:02:31]} 8. Bxe3 {[%clk 0:02:39]}  Nc6 {[%clk 0:02:30]} 9. Nf3 {[%clk 0:02:34]}  Bxg4 {[%clk 0:02:29]} 10. Qe2 {[%clk 0:02:14]}  Be7 {[%clk 0:02:28]} 11. Bxc5 {[%clk 0:02:08]}  Qa5+ {[%clk 0:01:53]} 12. b4 {[%clk 0:02:07]}  Qc7 {[%clk 0:01:53]} 13. Bxe7 {[%clk 0:01:58]}  Nxe7 {[%clk 0:01:53]} 14. Qb5+ {[%clk 0:01:45]}  Bd7 {[%clk 0:01:50]} 15. Qd3 {[%clk 0:01:42]}  Bf5 {[%clk 0:01:47]} 16. Qb5+ {[%clk 0:01:40]}  Kf8 {[%clk 0:01:47]} 17. Bd3 {[%clk 0:01:33]}  a6 {[%clk 0:01:43]} 18. Qc5 {[%clk 0:01:32]}  Qg3+ {[%clk 0:01:42]} 19. Kf1 {[%clk 0:01:23]}  Rc8 {[%clk 0:01:35]} 20. Qf2 {[%clk 0:01:18]}  Bxd3+ {[%clk 0:01:35]} 21. cxd3 {[%clk 0:01:18]}  Rc1+ {[%clk 0:01:35]} 22. Ne1 {[%clk 0:01:11]}  Qxd3+ {[%clk 0:01:30]} 23. Qe2 {[%clk 0:01:07]}  Qd4 {[%clk 0:01:24]} 24. Qd2 {[%clk 0:00:49]}  Rxe1+ {[%clk 0:01:24]} 25. Qxe1 {[%clk 0:00:47]}  Qxa1 {[%clk 0:01:24]} 26. Rh3 {[%clk 0:00:44]}  h5 {[%clk 0:01:07]} 27. Re3 {[%clk 0:00:37]}  Rh6 {[%clk 0:01:03]} 28. Kg1 {[%clk 0:00:27]}  Re6 {[%clk 0:01:00]} 29. Rxe6 {[%clk 0:00:20]}  fxe6 {[%clk 0:01:00]} 30. a3 {[%clk 0:00:15]}  h4 {[%clk 0:00:57]} 31. Kh2 {[%clk 0:00:13]}  Qf6 {[%clk 0:00:56]} 32. Nc3 {[%clk 0:00:11]}  Qf4+ {[%clk 0:00:54]} 33. Kh1 {[%clk 0:00:11]}  Nf5 {[%clk 0:00:52]} 34. Ne2 {[%clk 0:00:11]}  Qe5 {[%clk 0:00:50]} 35. Qf1 {[%clk 0:00:11]}  Qxe2 {[%clk 0:00:50]} 36. Qf4 {[%clk 0:00:09]}  Qf1+ {[%clk 0:00:49]} 37. Qxf1 {[%clk 0:00:08]}  Ke7 {[%clk 0:00:47]} 38. Qd1 {[%clk 0:00:07]}  Kd6 {[%clk 0:00:47]} 39. Kh2 {[%clk 0:00:08]}  d4 {[%clk 0:00:44]} 40. Qg4 {[%clk 0:00:08]}  b6 {[%clk 0:00:42]} 41. Qe4 {[%clk 0:00:07]}  g6 {[%clk 0:00:40]} 42. Qb7 {[%clk 0:00:07]}  Ke5 {[%clk 0:00:37]} 43. Qxb6 {[%clk 0:00:07]}  d3 {[%clk 0:00:38]} 44. Qxa6 {[%clk 0:00:07]}  Kd4 {[%clk 0:00:36]} 45. Qa7+ {[%clk 0:00:06]}  Kc3 {[%clk 0:00:36]} 46. Qc5+ {[%clk 0:00:06]}  Kb3 {[%clk 0:00:35]} 47. Qc1 {[%clk 0:00:06]}  e5 {[%clk 0:00:34]} 48. b5 {[%clk 0:00:05]}  e4 {[%clk 0:00:31]} 49. b6 {[%clk 0:00:05]}  Nd6 {[%clk 0:00:27]} 50. Qc5 {[%clk 0:00:04]}  d2 {[%clk 0:00:25]} 51. Qxd6 {[%clk 0:00:04]}  Kc2 {[%clk 0:00:26]} 52. b7 {[%clk 0:00:05]}  d1=Q {[%clk 0:00:26]} 53. Qxd1+ {[%clk 0:00:05]}  Kxd1 {[%clk 0:00:27]} 54. b8=Q {[%clk 0:00:05]}  e3 {[%clk 0:00:28]} 55. Qe5 {[%clk 0:00:05]}  e2 {[%clk 0:00:28]} 56. a4 {[%clk 0:00:05]}  g5 {[%clk 0:00:27]} 57. a5 {[%clk 0:00:04]}  g4 {[%clk 0:00:28]} 58. a6 {[%clk 0:00:04]}  Kd2 {[%clk 0:00:28]} 59. a7 {[%clk 0:00:04]}  e1=Q {[%clk 0:00:29]} 60. Qxe1+ {[%clk 0:00:03]}  Kxe1 {[%clk 0:00:30]} 61. a8=Q {[%clk 0:00:03]}  Kf2 {[%clk 0:00:31]} 62. g3 {[%clk 0:00:03]}  h3 {[%clk 0:00:30]} 63. Kh1 {[%clk 0:00:04]}  Kxg3 {[%clk 0:00:30]} 64. Qe4 {[%clk 0:00:05]}  Kh4 {[%clk 0:00:30]} 65. Qe3 {[%clk 0:00:05]}  g3 {[%clk 0:00:30]} 66. Qf4+ {[%clk 0:00:06]}  Kh5 {[%clk 0:00:31]} 67. Qxg3 {[%clk 0:00:07]}  h2 {[%clk 0:00:32]} 68. Qxh2+ {[%clk 0:00:07]}  Kg4 {[%clk 0:00:32]} 69. Qf2 {[%clk 0:00:08]}  Kh3 {[%clk 0:00:32]} 70. Qf3+ {[%clk 0:00:07]}  Kh4 {[%clk 0:00:33]} 71. Kg2 {[%clk 0:00:08]}  Kg5 {[%clk 0:00:33]} 72. Kf2 {[%clk 0:00:09]}  Kh4 {[%clk 0:00:34]} 73. Ke3 {[%clk 0:00:10]}  Kg5 {[%clk 0:00:35]} 74. Qf4+ {[%clk 0:00:10]}  Kg6 {[%clk 0:00:35]} 75. Ke4 {[%clk 0:00:10]}  Kh5 {[%clk 0:00:35]} 76. Qg3 {[%clk 0:00:10]}  Kh6 {[%clk 0:00:35]} 77. Kf5 {[%clk 0:00:10]}  Kh5 {[%clk 0:00:36]} 78. Qh2# {[%clk 0:00:10]} 1-0


[Site "https://www.chess.com"]

[Event "Titled Tuesday Blitz May 17 Early 2022"]
[White "Yilmaz, Mustafa"]
[Black "Liyanage, Ranindu Dilshan"]
[WhiteFideId "6302718"]
[BlackFideId "9915834"]
[WhiteElo "2568"]
[BlackElo "1858"]
[Result "0-1"]
[Round "03"]
[TimeControl "180+1"]
[Date "2022.05.17"]
[WhiteClock "0:00:01"]
[BlackClock "0:00:06"]

1. d4 {[%clk 0:03:00]}  Nf6 {[%clk 0:03:00]} 2. c4 {[%clk 0:03:01]}  e6 {[%clk 0:03:00]} 3. Nc3 {[%clk 0:03:01]}  Bb4 {[%clk 0:03:01]} 4. Qc2 {[%clk 0:03:02]}  O-O {[%clk 0:03:01]} 5. a3 {[%clk 0:03:01]}  Bxc3+ {[%clk 0:03:01]} 6. Qxc3 {[%clk 0:03:02]}  d5 {[%clk 0:03:00]} 7. Bg5 {[%clk 0:03:00]}  dxc4 {[%clk 0:03:01]} 8. Qxc4 {[%clk 0:03:00]}  b6 {[%clk 0:03:01]} 9. Rc1 {[%clk 0:03:00]}  Ba6 {[%clk 0:02:48]} 10. Bxf6 {[%clk 0:02:24]}  Qxf6 {[%clk 0:02:39]} 11. Qa4 {[%clk 0:02:21]}  c5 {[%clk 0:02:35]} 12. Nf3 {[%clk 0:02:17]}  Rd8 {[%clk 0:02:29]} 13. e3 {[%clk 0:02:10]}  Bxf1 {[%clk 0:02:30]} 14. Rxf1 {[%clk 0:01:58]}  cxd4 {[%clk 0:02:29]} 15. Nxd4 {[%clk 0:01:55]}  Nd7 {[%clk 0:02:27]} 16. Rc7 {[%clk 0:01:35]}  Nc5 {[%clk 0:02:23]} 17. Qc6 {[%clk 0:01:32]}  Na6 {[%clk 0:01:00]} 18. Rd7 {[%clk 0:01:28]}  Rdc8 {[%clk 0:00:57]} 19. Qd6 {[%clk 0:01:05]}  Qg6 {[%clk 0:00:39]} 20. Ke2 {[%clk 0:00:37]}  Nc5 {[%clk 0:00:36]} 21. Rc1 {[%clk 0:00:09]}  Qd3+ {[%clk 0:00:25]} 22. Kf3 {[%clk 0:00:09]}  Qe4+ {[%clk 0:00:20]} 23. Kg3 {[%clk 0:00:09]}  Nxd7 {[%clk 0:00:14]} 24. Rxc8+ {[%clk 0:00:09]}  Rxc8 {[%clk 0:00:15]} 25. Qxd7 {[%clk 0:00:10]}  Qe5+ {[%clk 0:00:15]} 26. Kh3 {[%clk 0:00:08]}  Qh5+ {[%clk 0:00:13]} 27. Kg3 {[%clk 0:00:08]}  Qe5+ {[%clk 0:00:14]} 28. Kh3 {[%clk 0:00:08]}  Qc7 {[%clk 0:00:15]} 29. Qa4 {[%clk 0:00:06]}  e5 {[%clk 0:00:15]} 30. Nf3 {[%clk 0:00:05]}  Qe7 {[%clk 0:00:13]} 31. g4 {[%clk 0:00:05]}  h6 {[%clk 0:00:14]} 32. Kg3 {[%clk 0:00:05]}  a5 {[%clk 0:00:12]} 33. Qe4 {[%clk 0:00:06]}  Qe6 {[%clk 0:00:12]} 34. h4 {[%clk 0:00:06]}  f6 {[%clk 0:00:12]} 35. h5 {[%clk 0:00:05]}  Rc4 {[%clk 0:00:11]} 36. Qa8+ {[%clk 0:00:05]}  Kh7 {[%clk 0:00:11]} 37. Nh2 {[%clk 0:00:05]}  e4 {[%clk 0:00:09]} 38. Kg2 {[%clk 0:00:02]}  Rc2 {[%clk 0:00:09]} 39. Qd8 {[%clk 0:00:01]}  f5 {[%clk 0:00:08]} 40. Qd4 {[%clk 0:00:01]}  fxg4 {[%clk 0:00:06]} 41. Nf1 {[%clk 0:00:01]}  Qf5 {[%clk 0:00:06]} 42. Kh1 {[%clk 0:00:01]}  Rxf2 {[%clk 0:00:05]} 43. Ng3 {[%clk 0:00:01]}  Qf3+ {[%clk 0:00:05]} 44. Kg1 {[%clk 0:00:01]}  Qxg3+ {[%clk 0:00:06]} 0-1


[Site "https://www.chess.com"]

[Event "Titled Tuesday Blitz May 17 Early 2022"]
[White "Zakhartsov, Vladimir"]
[Black "Avazkhonov, Alikhon"]
[WhiteFideId "4145097"]
[BlackFideId "14208504"]
[WhiteElo "2428"]
[BlackElo "1739"]
[Result "1-0"]
[Round "03"]
[TimeControl "180+1"]
[Date "2022.05.17"]
[WhiteClock "0:00:39"]
[BlackClock "0:00:02"]

1. d4 {[%clk 0:03:00]}  d5 {[%clk 0:02:59]} 2. c4 {[%clk 0:03:00]}  e6 {[%clk 0:02:59]} 3. Nf3 {[%clk 0:02:59]}  c6 {[%clk 0:03:00]} 4. Nbd2 {[%clk 0:02:51]}  f5 {[%clk 0:02:56]} 5. g3 {[%clk 0:02:49]}  Nf6 {[%clk 0:02:51]} 6. Bg2 {[%clk 0:02:49]}  Bd6 {[%clk 0:02:50]} 7. O-O {[%clk 0:02:48]}  O-O {[%clk 0:02:51]} 8. b3 {[%clk 0:02:45]}  Nbd7 {[%clk 0:02:45]} 9. a4 {[%clk 0:02:43]}  Qe7 {[%clk 0:02:43]} 10. e3 {[%clk 0:02:42]}  Ne4 {[%clk 0:02:43]} 11. Nb1 {[%clk 0:02:40]}  a5 {[%clk 0:02:10]} 12. Ba3 {[%clk 0:02:35]}  Ndf6 {[%clk 0:02:07]} 13. Bxd6 {[%clk 0:02:31]}  Qxd6 {[%clk 0:02:07]} 14. Ne5 {[%clk 0:02:30]}  Bd7 {[%clk 0:02:00]} 15. f3 {[%clk 0:02:06]}  Ng5 {[%clk 0:01:59]} 16. Nc3 {[%clk 0:02:04]}  Be8 {[%clk 0:01:36]} 17. Nd3 {[%clk 0:01:59]}  Bh5 {[%clk 0:01:16]} 18. Qc1 {[%clk 0:01:57]}  Nf7 {[%clk 0:01:05]} 19. Qa3 {[%clk 0:01:55]}  g5 {[%clk 0:00:53]} 20. Qxd6 {[%clk 0:01:52]}  Nxd6 {[%clk 0:00:53]} 21. Ne5 {[%clk 0:01:52]}  Nf7 {[%clk 0:00:41]} 22. Nd3 {[%clk 0:01:37]}  Rfe8 {[%clk 0:00:33]} 23. f4 {[%clk 0:01:35]}  h6 {[%clk 0:00:23]} 24. c5 {[%clk 0:01:29]}  Ne4 {[%clk 0:00:14]} 25. Rfc1 {[%clk 0:01:29]}  Nxc3 {[%clk 0:00:11]} 26. Rxc3 {[%clk 0:01:28]}  Be2 {[%clk 0:00:11]} 27. Nc1 {[%clk 0:01:12]}  Ba6 {[%clk 0:00:11]} 28. Bf3 {[%clk 0:01:12]}  g4 {[%clk 0:00:09]} 29. Bg2 {[%clk 0:01:12]}  Nh8 {[%clk 0:00:08]} 30. Na2 {[%clk 0:01:11]}  Ng6 {[%clk 0:00:08]} 31. Kf2 {[%clk 0:01:10]}  h5 {[%clk 0:00:08]} 32. Rb1 {[%clk 0:01:05]}  h4 {[%clk 0:00:07]} 33. Rb2 {[%clk 0:01:02]}  Kf7 {[%clk 0:00:05]} 34. b4 {[%clk 0:01:00]}  axb4 {[%clk 0:00:04]} 35. Rxb4 {[%clk 0:00:59]}  Re7 {[%clk 0:00:04]} 36. Nc1 {[%clk 0:00:59]}  Rh8 {[%clk 0:00:04]} 37. Kg1 {[%clk 0:00:54]}  Rc7 {[%clk 0:00:03]} 38. Nb3 {[%clk 0:00:50]}  Nf8 {[%clk 0:00:02]} 39. Na5 {[%clk 0:00:49]}  Nd7 {[%clk 0:00:02]} 40. Rcb3 {[%clk 0:00:47]}  Rb8 {[%clk 0:00:02]} 41. gxh4 {[%clk 0:00:45]}  Kg6 {[%clk 0:00:02]} 42. Kf2 {[%clk 0:00:45]}  Kh5 {[%clk 0:00:02]} 43. Kg3 {[%clk 0:00:46]}  Nf6 {[%clk 0:00:02]} 44. Rb6 {[%clk 0:00:45]}  Nd7 {[%clk 0:00:01]} 45. Rb1 {[%clk 0:00:40]}  Nf6 {[%clk 0:00:02]} 46. Rxa6 {[%clk 0:00:39]} 1-0


[Site "https://www.chess.com"]